[Event "FIDE WCCC Girls-10 2024"]
[Site "Montesilvano"]
[Date "2024.11.22"]
[Round "7.27"]
[White "Abibulla, Inzhu"]
[Black "Li, Wan Qin"]
[Result "0-1"]
[Annotator "NA RC"]
[ECO "B30"]
[WhiteElo "1499"]
[BlackElo "1628"]
[PlyCount "100"]
[EventDate "2024.11.18"]
[EventType "swiss"]
[EventCountry "ITA"]
[SourceTitle "playchess.com"]
[Source "ChessBase"]
[SourceQuality "1"]
[TimeControl "5400+30"]

1. e4 {[%emt 0:00:03]} c5 {[%emt 0:00:06]} 2. Nc3 {[%emt 0:00:17]} Nc6 {[%emt 0:00:11]} 3. Nf3 {[%emt 0:00:07]} e5 {[%emt 0:00:42]} 4. Bc4 {[%emt 0:00:19]} Be7 {[%emt 0:00:53]} 5. O-O {[%emt 0:00:34]} Nf6 {[%emt 0:00:59]} 6. d3 {[%emt 0:00:38]} h6 {[%emt 0:00:55]} 7. h3 {[%emt 0:00:41]} d6 {[%emt 0:01:10]} 8. Be3 {[%emt 0:00:26]} a6 {[%emt 0:02:36]} 9. a4 {[%emt 0:01:29]} O-O {[%emt 0:03:01]} 10. Ne2 {[%emt 0:04:37]} Nd4 {[%emt 0:02:59]} 11. Ng3 {[%emt 0:01:27]} Qb6 {[%emt 0:13:57]} 12. Rb1 {[%emt 0:01:57]} Bd7 {[%emt 0:07:40]} 13. b3 {[%emt 0:01:52]} Qc7 {[%emt 0:03:23]} 14. Bd5 {[%emt 0:06:25]} Nxd5 {[%emt 0:03:28]} 15. exd5 {[%emt 0:00:24]} f5 {[%emt 0:00:40]} 16. Bd2 {[%emt 0:02:11]} f4 {[%emt 0:10:42]} 17. Ne4 {[%emt 0:00:17]} Nf5 {[%emt 0:07:24]} 18. Nh2 {[%emt 0:02:45]} b5 {[%emt 0:09:12]} 19. axb5 {[%emt 0:00:31]} axb5 {[%emt 0:00:26]} 20. c4 {[%emt 0:04:15]} b4 {[%emt 0:03:11]} 21. Nf3 {[%emt 0:01:16]} Kh7 {[%emt 0:05:34]} 22. Nh2 {[%emt 0:04:17]} Nd4 {[%emt 0:04:23]} 23. Nf3 {[%emt 0:00:35]} Nxf3+ {[%emt 0:04:05]} 24. Qxf3 {[%emt 0:00:25]} Bf5 {[%emt 0:00:57]} 25. Qe2 {[%emt 0:01:44]} Qd7 {[%emt 0:01:38]} 26. Kh2 {[%emt 0:03:08]} Bg6 {[%emt 0:02:48]} 27. Rg1 {[%emt 0:02:05]} Ra2 {[%emt 0:01:06]} 28. Qd1 {[%emt 0:02:00]} Bh4 {[%emt 0:03:11]} 29. f3 {[%emt 0:02:12]} Bxe4 {[%emt 0:01:02]} 30. dxe4 {[%emt 0:00:24]} Qf7 {[%emt 0:01:00]} 31. Be1 {[%emt 0:01:00]} Bg3+ {[%emt 0:01:16]} 32. Kh1 {[%emt 0:02:44]} Qh5 {[%emt 0:00:33]} 33. Rf1 {[%emt 0:00:48]} Qg5 {[%emt 0:01:07]} 34. Bd2 {[%emt 0:02:49]} Rfa8 {[%emt 0:00:32]} 35. Qc1 {[%emt 0:01:47]} Bh4 {[%emt 0:00:48]} 36. Qd1 {[%emt 0:50:01]} Qg3 {[%emt 0:00:41]} 37. Rg1 {[%emt 0:00:00]} Qg5 {[%emt 0:00:34]} 38. Qc1 {[%emt 0:00:00]} Bf2 {[%emt 0:00:19]} 39. Rf1 {[%emt 0:00:00]} Be3 {[%emt 0:01:15]} 40. Rd1 {[%emt 0:00:00]} Bd4 {[%emt 0:00:14]} 41. Re1 {[%emt 0:00:00]} Qg3 {[%emt 0:00:59]} 42. Re2 {[%emt 0:00:00]} Ra1 {[%emt 0:00:58]} 43. Be1 {[%emt 0:00:00]} Qg6 {[%emt 0:00:36]} 44. Kh2 {[%emt 0:00:00]} Rxb1 {[%emt 0:00:25]} 45. Qxb1 {[%emt 0:00:00]} Ra1 {[%emt 0:00:09]} 46. Qc2 {[%emt 0:00:00]} Rxe1 {[%emt 0:00:12]} 47. Rxe1 {[%emt 0:00:00]} Qg3+ {[%emt 0:00:02]} 48. Kh1 {[%emt 0:00:00]} Qxe1+ {[%emt 0:00:00]} 49. Kh2 {[%emt 0:00:00]} Bg1+ {[%emt 0:00:00]} 50. Kh1 {[%emt 0:00:00]} Bf2+ {[%emt 0:00:00]} 0-1

[Event "FIDE WCCC Girls-10 2024"]
[Site "Montesilvano"]
[Date "2024.11.22"]
[Round "7.28"]
[White "Afandi, Sadagul"]
[Black "Sobirova, Mumtozbegim"]
[Result "1-0"]
[Annotator "NA RC"]
[ECO "B47"]
[WhiteElo "1625"]
[BlackElo "1476"]
[PlyCount "101"]
[EventDate "2024.11.18"]
[EventType "swiss"]
[EventCountry "ITA"]
[SourceTitle "playchess.com"]
[Source "ChessBase"]
[SourceQuality "1"]
[TimeControl "5400+30"]

1. e4 {[%emt 0:00:03]} c5 {[%emt 0:00:15]} 2. Nf3 {[%emt 0:00:07]} e6 {[%emt 0:00:20]} 3. d4 {[%emt 0:00:06]} cxd4 {[%emt 0:00:21]} 4. Nxd4 {[%emt 0:00:06]} Nc6 {[%emt 0:00:50]} 5. Nc3 {[%emt 0:00:05]} Qc7 {[%emt 0:00:31]} 6. g3 {[%emt 0:00:30]} Nf6 {[%emt 0:00:34]} 7. Bg2 {[%emt 0:00:25]} Nxd4 {[%emt 0:03:07]} 8. Qxd4 {[%emt 0:01:46]} Bc5 {[%emt 0:00:56]} 9. Qd3 {[%emt 0:06:28]} a6 {[%emt 0:03:32]} 10. O-O {[%emt 0:01:42]} O-O {[%emt 0:00:52]} 11. Bg5 {[%emt 0:06:46]} Ng4 {[%emt 0:05:42]} 12. h3 {[%emt 0:08:07]} Ne5 {[%emt 0:01:23]} 13. Qe2 {[%emt 0:08:44]} Ng6 {[%emt 0:02:02]} 14. Be3 {[%emt 0:02:47]} Bxe3 {[%emt 0:01:05]} 15. Qxe3 {[%emt 0:00:20]} Ne5 {[%emt 0:01:15]} 16. b3 {[%emt 0:04:54]} b5 {[%emt 0:02:21]} 17. f4 {[%emt 0:04:21]} Nc6 {[%emt 0:00:44]} 18. e5 {[%emt 0:03:15]} Bb7 {[%emt 0:00:49]} 19. Qc5 {[%emt 0:06:53]} Rac8 {[%emt 0:01:41]} 20. Ne4 {[%emt 0:02:08]} Na5 {[%emt 0:04:58]} 21. Qxc7 {[%emt 0:08:14]} Rxc7 {[%emt 0:00:23]} 22. Rf2 {[%emt 0:00:41]} Bxe4 {[%emt 0:01:22]} 23. Bxe4 {[%emt 0:00:19]} Nc6 {[%emt 0:00:29]} 24. Rd2 {[%emt 0:05:58]} Rd8 {[%emt 0:02:13]} 25. a3 {[%emt 0:01:30]} Na7 {[%emt 0:06:57]} 26. Rd6 {[%emt 0:04:02]} Nc6 {[%emt 0:04:43]} 27. Rad1 {[%emt 0:01:51]} Nb8 {[%emt 0:01:59]} 28. R1d2 {[%emt 0:03:25]} Rc3 {[%emt 0:01:50]} 29. R6d3 {[%emt 0:04:32]} Rxd3 {[%emt 0:02:59]} 30. Rxd3 {[%emt 0:00:14]} f5 {[%emt 0:01:43]} 31. Bb7 {[%emt 0:01:26]} Kf7 {[%emt 0:06:45]} 32. Kf2 {[%emt 0:00:47]} Ke7 {[%emt 0:00:22]} 33. Rd6 {[%emt 0:00:09]} g6 {[%emt 0:01:03]} 34. Ke3 {[%emt 0:01:41]} h6 {[%emt 0:01:16]} 35. Kd4 {[%emt 0:01:14]} g5 {[%emt 0:01:19]} 36. Kc5 {[%emt 0:01:27]} Kf7 {[%emt 0:02:57]} 37. Kb6 {[%emt 0:02:06]} Ke7 {[%emt 0:00:58]} 38. Rd3 {[%emt 0:02:56]} g4 {[%emt 0:00:38]} 39. h4 {[%emt 0:00:07]} h5 {[%emt 0:00:14]} 40. Bxa6 {[%emt 0:00:21]} Nxa6 {[%emt 0:00:52]} 41. Kxa6 {[%emt 0:00:26]} Rc8 {[%emt 0:00:08]} 42. Kxb5 {[%emt 0:00:22]} Rxc2 {[%emt 0:00:10]} 43. a4 {[%emt 0:00:13]} Rf2 {[%emt 0:00:15]} 44. Kc4 {[%emt 0:01:41]} Kd8 {[%emt 0:01:00]} 45. b4 {[%emt 0:00:43]} Rc2+ {[%emt 0:00:45]} 46. Rc3 {[%emt 0:00:37]} Re2 {[%emt 0:00:20]} 47. b5 {[%emt 0:01:46]} Ra2 {[%emt 0:00:38]} 48. Kb3 {[%emt 0:00:33]} Rf2 {[%emt 0:00:17]} 49. b6 {[%emt 0:00:28]} Rf3 {[%emt 0:00:25]} 50. a5 {[%emt 0:00:10]} Rxc3+ {[%emt 0:00:21]} 51. Kxc3 {[%emt 0:00:04]} 1-0

[Event "FIDE WCCC Girls-10 2024"]
[Site "Montesilvano"]
[Date "2024.11.22"]
[Round "7.29"]
[White "Foong, Livia"]
[Black "Xin, Lisa J."]
[Result "0-1"]
[Annotator "NA RC"]
[ECO "D02"]
[WhiteElo "1461"]
[BlackElo "1602"]
[PlyCount "108"]
[EventDate "2024.11.18"]
[EventType "swiss"]
[EventCountry "ITA"]
[SourceTitle "playchess.com"]
[Source "ChessBase"]
[SourceQuality "1"]
[TimeControl "5400+30"]

1. d4 {[%emt 0:00:02]} d5 {[%emt 0:00:05]} 2. Nf3 {[%emt 0:00:06]} Nf6 {[%emt 0:00:06]} 3. Bf4 {[%emt 0:00:05]} c5 {[%emt 0:00:05]} 4. e3 {[%emt 0:00:07]} e6 {[%emt 0:00:31]} 5. Be2 {[%emt 0:00:08]} Nc6 {[%emt 0:00:10]} 6. O-O {[%emt 0:00:15]} Be7 {[%emt 0:00:24]} 7. c4 {[%emt 0:00:16]} O-O {[%emt 0:01:00]} 8. Nc3 {[%emt 0:00:07]} b6 {[%emt 0:03:46]} 9. Ne5 {[%emt 0:00:15]} Bb7 {[%emt 0:01:04]} 10. Qc2 {[%emt 0:01:03]} cxd4 {[%emt 0:04:42]} 11. Nxc6 {[%emt 0:00:39]} Bxc6 {[%emt 0:00:08]} 12. exd4 {[%emt 0:00:16]} dxc4 {[%emt 0:02:01]} 13. Be5 {[%emt 0:01:35]} b5 {[%emt 0:13:54]} 14. a4 {[%emt 0:00:17]} a6 {[%emt 0:11:09]} 15. axb5 {[%emt 0:02:24]} axb5 {[%emt 0:03:15]} 16. Bf3 {[%emt 0:02:19]} Bxf3 {[%emt 0:00:53]} 17. gxf3 {[%emt 0:03:08]} Qb6 {[%emt 0:03:15]} 18. b3 {[%emt 0:01:28]} cxb3 {[%emt 0:02:58]} 19. Qxb3 {[%emt 0:00:20]} b4 {[%emt 0:02:43]} 20. Rab1 {[%emt 0:01:12]} Qc6 {[%emt 0:01:10]} 21. Na2 {[%emt 0:00:45]} Ra3 {[%emt 0:02:08]} 22. Nxb4 {[%emt 0:02:05]} Qxf3 {[%emt 0:11:15]} 23. Qxf3 {[%emt 0:00:24]} Rxf3 {[%emt 0:00:07]} 24. Nc6 {[%emt 0:00:22]} Ba3 {[%emt 0:01:29]} 25. Rb5 {[%emt 0:01:25]} Nd5 {[%emt 0:12:50]} 26. Ra1 {[%emt 0:01:38]} h6 {[%emt 0:07:12]} 27. Ra5 {[%emt 0:00:51]} Bb2 {[%emt 0:01:38]} 28. R1a2 {[%emt 0:00:23]} Bc3 {[%emt 0:03:46]} 29. R5a3 {[%emt 0:00:38]} Rd3 {[%emt 0:02:33]} 30. Bd6 {[%emt 0:00:27]} Re8 {[%emt 0:00:35]} 31. Nb4 {[%emt 0:00:36]} Rd1+ {[%emt 0:01:34]} 32. Kg2 {[%emt 0:00:12]} Bxb4 {[%emt 0:02:06]} 33. Bxb4 {[%emt 0:00:14]} Nxb4 {[%emt 0:00:07]} 34. Rb2 {[%emt 0:00:13]} Rxd4 {[%emt 0:00:48]} 35. Ra4 {[%emt 0:00:22]} Nc6 {[%emt 0:00:19]} 36. Ra6 {[%emt 0:00:22]} Rb8 {[%emt 0:01:47]} 37. Re2 {[%emt 0:00:31]} Ne7 {[%emt 0:00:42]} 38. Ra7 {[%emt 0:00:11]} Nf5 {[%emt 0:00:22]} 39. Kf1 {[%emt 0:00:22]} Rbb4 {[%emt 0:01:15]} 40. Ra8+ {[%emt 0:00:22]} Kh7 {[%emt 0:00:07]} 41. Ra1 {[%emt 0:00:13]} Rh4 {[%emt 0:00:49]} 42. f3 {[%emt 0:00:17]} Ng3+ {[%emt 0:00:32]} 43. hxg3 {[%emt 0:00:19]} Rh1+ {[%emt 0:00:06]} 44. Kg2 {[%emt 0:00:06]} Rxa1 {[%emt 0:00:09]} 45. Rf2 {[%emt 0:00:07]} Rab1 {[%emt 0:00:10]} 46. g4 {[%emt 0:00:15]} R4b2 {[%emt 0:00:07]} 47. Rxb2 {[%emt 0:00:08]} Rxb2+ {[%emt 0:00:05]} 48. Kg3 {[%emt 0:00:16]} Kg6 {[%emt 0:00:09]} 49. Kf4 {[%emt 0:00:20]} Rb4+ {[%emt 0:00:13]} 50. Kg3 {[%emt 0:00:12]} Kg5 {[%emt 0:00:11]} 51. Kh3 {[%emt 0:00:25]} Kf4 {[%emt 0:00:14]} 52. Kh4 {[%emt 0:00:11]} Kxf3 {[%emt 0:00:23]} 53. Kh5 {[%emt 0:00:10]} Kg3 {[%emt 0:00:30]} 54. g5 {[%emt 0:00:19]} Rh4# {[%emt 0:00:07]} 0-1

[Event "FIDE WCCC Girls-10 2024"]
[Site "Montesilvano"]
[Date "2024.11.22"]
[Round "7.30"]
[White "Billod-Laillet, Camille"]
[Black "Li, Grace"]
[Result "1-0"]
[Annotator "NA RC"]
[ECO "C50"]
[WhiteElo "1732"]
[BlackElo "1529"]
[PlyCount "47"]
[EventDate "2024.11.18"]
[EventType "swiss"]
[EventCountry "ITA"]
[SourceTitle "playchess.com"]
[Source "ChessBase"]
[SourceQuality "1"]
[TimeControl "5400+30"]

1. e4 {[%emt 0:00:03]} e5 {[%emt 0:00:06]} 2. Nf3 {[%emt 0:00:11]} Nc6 {[%emt 0:00:09]} 3. Bc4 {[%emt 0:00:23]} Bc5 {[%emt 0:00:09]} 4. Nc3 {[%emt 0:00:36]} Nf6 {[%emt 0:01:50]} 5. d3 {[%emt 0:00:20]} a6 {[%emt 0:00:25]} 6. a3 {[%emt 0:04:07]} d6 {[%emt 0:03:05]} 7. Bg5 {[%emt 0:02:39]} h6 {[%emt 0:03:02]} 8. Bh4 {[%emt 0:01:27]} Be6 {[%emt 0:14:33]} 9. Nd5 {[%emt 0:08:42]} Bxd5 {[%emt 0:10:52]} 10. Bxd5 {[%emt 0:00:38]} Rb8 {[%emt 0:05:51]} 11. Ba2 {[%emt 0:11:06]} g5 {[%emt 0:03:28]} 12. Bg3 {[%emt 0:08:10]} Ne7 {[%emt 0:13:03]} 13. c3 {[%emt 0:04:27]} c6 {[%emt 0:10:27]} 14. Qb3 {[%emt 0:07:22]} Rh7 {[%emt 0:01:38]} 15. Qc2 {[%emt 0:01:41]} Ba7 {[%emt 0:07:00]} 16. d4 {[%emt 0:02:59]} Nh5 {[%emt 0:03:43]} 17. O-O-O {[%emt 0:06:15]} b5 {[%emt 0:03:55]} 18. dxe5 {[%emt 0:00:53]} Nxg3 {[%emt 0:00:47]} 19. hxg3 {[%emt 0:00:29]} Nc8 {[%emt 0:01:06]} 20. exd6 {[%emt 0:00:25]} Rb7 {[%emt 0:05:27]} 21. Rd2 {[%emt 0:06:46]} f6 {[%emt 0:05:57]} 22. Qb3 {[%emt 0:04:52]} Rh8 {[%emt 0:02:56]} 23. d7+ {[%emt 0:00:52]} Kf8 {[%emt 0:01:55]} 24. Qf7# {[%emt 0:27:07]} 1-0

[Event "FIDE WCCC Girls-10 2024"]
[Site "Montesilvano"]
[Date "2024.11.22"]
[Round "7.31"]
[White "Saltkhutsishvili, Sara"]
[Black "Serradell Munoz, Silvia"]
[Result "1-0"]
[Annotator "NA RC"]
[ECO "B34"]
[WhiteElo "1546"]
[BlackElo "1670"]
[PlyCount "69"]
[EventDate "2024.11.18"]
[EventType "swiss"]
[EventCountry "ITA"]
[SourceTitle "playchess.com"]
[Source "ChessBase"]
[SourceQuality "1"]
[TimeControl "5400+30"]

1. e4 {[%emt 0:00:02]} c5 {[%emt 0:00:34]} 2. Nf3 {[%emt 0:00:18]} g6 {[%emt 0:00:29]} 3. d4 {[%emt 0:00:57]} cxd4 {[%emt 0:00:37]} 4. Nxd4 {[%emt 0:00:46]} Bg7 {[%emt 0:01:01]} 5. Nc3 {[%emt 0:01:04]} Nc6 {[%emt 0:01:17]} 6. Be3 {[%emt 0:02:27]} Nf6 {[%emt 0:01:48]} 7. Nxc6 {[%emt 0:02:45]} bxc6 {[%emt 0:02:58]} 8. e5 {[%emt 0:05:33]} Ng8 {[%emt 0:01:02]} 9. f4 {[%emt 0:07:16]} Nh6 {[%emt 0:02:22]} 10. Be2 {[%emt 0:04:20]} O-O {[%emt 0:03:53]} 11. O-O {[%emt 0:01:51]} d6 {[%emt 0:02:00]} 12. Bf3 {[%emt 0:08:35]} Qc7 {[%emt 0:06:29]} 13. exd6 {[%emt 0:03:40]} exd6 {[%emt 0:01:00]} 14. Nb5 {[%emt 0:01:06]} Qd7 {[%emt 0:03:25]} 15. Nxd6 {[%emt 0:01:53]} Ba6 {[%emt 0:02:09]} 16. Rf2 {[%emt 0:05:28]} Rfd8 {[%emt 0:01:44]} 17. Ne4 {[%emt 0:03:31]} Qb7 {[%emt 0:02:00]} 18. Rd2 {[%emt 0:01:53]} Rxd2 {[%emt 0:02:41]} 19. Qxd2 {[%emt 0:02:04]} Qxb2 {[%emt 0:00:46]} 20. Rd1 {[%emt 0:01:30]} Nf5 {[%emt 0:02:35]} 21. Bf2 {[%emt 0:03:58]} Qxa2 {[%emt 0:02:39]} 22. g4 {[%emt 0:07:16]} Qa3 {[%emt 0:02:58]} 23. c3 {[%emt 0:01:17]} Nh6 {[%emt 0:00:43]} 24. Qd7 {[%emt 0:02:06]} Bxc3 {[%emt 0:08:54]} 25. Bd4 {[%emt 0:04:50]} Bxd4+ {[%emt 0:01:53]} 26. Qxd4 {[%emt 0:00:10]} Qe7 {[%emt 0:06:20]} 27. Nf6+ {[%emt 0:03:55]} Kf8 {[%emt 0:00:25]} 28. Nxh7+ {[%emt 0:00:55]} Kg8 {[%emt 0:00:13]} 29. Nf6+ {[%emt 0:00:43]} Kf8 {[%emt 0:00:18]} 30. Qc3 {[%emt 0:03:33]} Bc8 {[%emt 0:10:07]} 31. Bxc6 {[%emt 0:09:52]} Rb8 {[%emt 0:00:37]} 32. Nh7+ {[%emt 0:03:52]} Kg8 {[%emt 0:00:17]} 33. Nf6+ {[%emt 0:00:07]} Kf8 {[%emt 0:00:10]} 34. f5 {[%emt 0:02:04]} gxf5 {[%emt 0:02:00]} 35. g5 {[%emt 0:00:56]} 1-0

[Event "FIDE WCCC Girls-10 2024"]
[Site "Montesilvano"]
[Date "2024.11.22"]
[Round "7.32"]
[White "Minzat, Victoria"]
[Black "Camacho Chavez, Nirvana"]
[Result "1-0"]
[Annotator "NA RC"]
[ECO "B17"]
[WhiteElo "1505"]
[BlackElo "1638"]
[PlyCount "129"]
[EventDate "2024.11.18"]
[EventType "swiss"]
[EventCountry "ITA"]
[SourceTitle "playchess.com"]
[Source "ChessBase"]
[SourceQuality "1"]
[TimeControl "5400+30"]

1. e4 {[%emt 0:00:01]} c6 {[%emt 0:00:15]} 2. d4 {[%emt 0:00:15]} d5 {[%emt 0:00:06]} 3. Nc3 {[%emt 0:00:12]} dxe4 {[%emt 0:00:15]} 4. Nxe4 {[%emt 0:00:10]} Nd7 {[%emt 0:00:07]} 5. Nf3 {[%emt 0:00:21]} Ngf6 {[%emt 0:00:06]} 6. Bd3 {[%emt 0:01:02]} Nxe4 {[%emt 0:01:54]} 7. Bxe4 {[%emt 0:00:07]} Nf6 {[%emt 0:00:44]} 8. Bd3 {[%emt 0:00:31]} Bg4 {[%emt 0:00:54]} 9. c3 {[%emt 0:00:18]} e6 {[%emt 1:30:39]} 10. h3 {[%emt 0:00:26]} Bxf3 {[%emt 0:00:00]} 11. Qxf3 {[%emt 0:00:10]} Be7 {[%emt 0:00:00]} 12. O-O {[%emt 0:00:45]} O-O {[%emt 0:00:00]} 13. Re1 {[%emt 0:01:29]} Nd5 {[%emt 0:00:00]} 14. Be4 {[%emt 0:02:45]} Bg5 {[%emt 0:00:00]} 15. Bxg5 {[%emt 0:05:56]} Qxg5 {[%emt 0:00:00]} 16. Bxd5 {[%emt 0:00:23]} Qxd5 {[%emt 0:00:00]} 17. Qxd5 {[%emt 0:01:22]} cxd5 {[%emt 0:00:00]} 18. Re3 {[%emt 0:00:41]} Rac8 {[%emt 0:00:00]} 19. Rb1 {[%emt 0:01:17]} Rc6 {[%emt 0:00:00]} 20. f4 {[%emt 0:00:45]} Rfc8 {[%emt 0:00:00]} 21. Rbe1 {[%emt 0:00:50]} g6 {[%emt 0:00:00]} 22. Rg3 {[%emt 0:02:14]} b5 {[%emt 0:00:00]} 23. a3 {[%emt 0:01:19]} a5 {[%emt 0:00:00]} 24. Rc1 {[%emt 0:01:49]} b4 {[%emt 0:00:00]} 25. axb4 {[%emt 0:00:08]} axb4 {[%emt 0:00:00]} 26. Kf2 {[%emt 0:00:34]} bxc3 {[%emt 0:00:00]} 27. Rgxc3 {[%emt 0:00:18]} Rxc3 {[%emt 0:00:00]} 28. Rxc3 {[%emt 0:00:05]} Rxc3 {[%emt 0:00:00]} 29. bxc3 {[%emt 0:00:03]} Kg7 {[%emt 0:00:00]} 30. g4 {[%emt 0:00:21]} Kf6 {[%emt 0:00:00]} 31. h4 {[%emt 0:00:34]} h5 {[%emt 0:00:00]} 32. Kf3 {[%emt 0:01:57]} Ke7 {[%emt 0:00:00]} 33. g5 {[%emt 0:02:33]} Kd6 {[%emt 0:00:00]} 34. Ke3 {[%emt 0:00:13]} Kc6 {[%emt 0:00:00]} 35. Kd2 {[%emt 0:00:21]} Kb6 {[%emt 0:00:00]} 36. Kc2 {[%emt 0:00:27]} Ka5 {[%emt 0:00:00]} 37. Kb3 {[%emt 0:02:20]} Kb5 {[%emt 0:00:00]} 38. Kc2 {[%emt 0:00:10]} Kc4 {[%emt 0:00:00]} 39. Kd2 {[%emt 0:00:15]} Kb5 {[%emt 0:00:00]} 40. Kd3 {[%emt 0:00:12]} Kc6 {[%emt 0:00:00]} 41. Kc2 {[%emt 0:00:38]} Kb6 {[%emt 0:00:00]} 42. Kb2 {[%emt 0:00:16]} Ka5 {[%emt 0:00:00]} 43. Ka3 {[%emt 0:00:27]} Kb5 {[%emt 0:00:00]} 44. Kb3 {[%emt 0:00:10]} Ka5 {[%emt 0:00:00]} 45. c4 {[%emt 0:00:48]} Kb6 {[%emt 0:00:00]} 46. cxd5 {[%emt 0:01:17]} exd5 {[%emt 0:00:00]} 47. Kb4 {[%emt 0:00:04]} Kc6 {[%emt 0:00:00]} 48. Ka5 {[%emt 0:00:16]} Kd7 {[%emt 0:00:00]} 49. Kb6 {[%emt 0:00:32]} Kd6 {[%emt 0:00:00]} 50. Kb5 {[%emt 0:00:20]} Ke6 {[%emt 0:00:00]} 51. Kc5 {[%emt 0:00:17]} Kf5 {[%emt 0:00:00]} 52. Kxd5 {[%emt 0:00:21]} Kxf4 {[%emt 0:00:00]} 53. Kc6 {[%emt 0:00:12]} Kg4 {[%emt 0:00:00]} 54. d5 {[%emt 0:00:07]} Kxh4 {[%emt 0:00:00]} 55. d6 {[%emt 0:00:01]} Kxg5 {[%emt 0:00:00]} 56. d7 {[%emt 0:00:06]} h4 {[%emt 0:00:00]} 57. d8=Q+ {[%emt 0:00:10]} Kg4 {[%emt 0:00:00]} 58. Qd4+ {[%emt 0:00:12]} Kg3 {[%emt 0:00:00]} 59. Qg1+ {[%emt 0:00:15]} Kf4 {[%emt 0:00:00]} 60. Kd6 {[%emt 0:00:26]} g5 {[%emt 0:00:00]} 61. Ke7 {[%emt 0:01:05]} f5 {[%emt 0:00:00]} 62. Kf6 {[%emt 0:00:22]} g4 {[%emt 0:00:00]} 63. Qf2+ {[%emt 0:00:20]} Ke4 {[%emt 0:00:00]} 64. Qxf5+ {[%emt 0:00:08]} Ke3 {[%emt 0:00:00]} 65. Qxg4 {[%emt 1:18:31]} 1-0

[Event "FIDE WCCC Girls-10 2024"]
[Site "Montesilvano"]
[Date "2024.11.22"]
[Round "7.33"]
[White "Mamarasulova, Yasmina"]
[Black "Macakova, Bianka"]
[Result "1-0"]
[Annotator "NA RC"]
[ECO "A88"]
[WhiteElo "1444"]
[BlackElo "1610"]
[PlyCount "123"]
[EventDate "2024.11.18"]
[EventType "swiss"]
[EventCountry "ITA"]
[SourceTitle "playchess.com"]
[Source "ChessBase"]
[SourceQuality "1"]
[TimeControl "5400+30"]

1. d4 {[%emt 0:00:26]} f5 {[%emt 0:00:07]} 2. Nf3 {[%emt 0:00:05]} Nf6 {[%emt 0:00:47]} 3. g3 {[%emt 0:00:08]} g6 {[%emt 0:00:39]} 4. Bg2 {[%emt 0:00:10]} Bg7 {[%emt 0:00:54]} 5. O-O {[%emt 0:00:07]} O-O {[%emt 0:00:34]} 6. b3 {[%emt 0:00:03]} d6 {[%emt 0:01:40]} 7. Bb2 {[%emt 0:00:09]} c6 {[%emt 0:05:43]} 8. c4 {[%emt 0:14:29]} Qe8 {[%emt 0:03:46]} 9. Nc3 {[%emt 0:11:10]} e5 {[%emt 0:08:45]} 10. dxe5 {[%emt 0:10:20]} dxe5 {[%emt 0:03:36]} 11. e4 {[%emt 0:19:12]} Na6 {[%emt 0:19:48]} 12. exf5 {[%emt 0:09:10]} Bxf5 {[%emt 0:04:29]} 13. Re1 {[%emt 0:02:05]} Rd8 {[%emt 0:46:12]} 14. Qe2 {[%emt 0:09:56]} Ng4 {[%emt 0:00:00]} 15. Rad1 {[%emt 0:04:03]} Rxd1 {[%emt 0:00:00]} 16. Rxd1 {[%emt 0:02:09]} Rf7 {[%emt 0:00:00]} 17. h3 {[%emt 0:07:46]} Nh6 {[%emt 0:00:00]} 18. Re1 {[%emt 0:00:29]} Re7 {[%emt 0:00:00]} 19. g4 {[%emt 0:00:23]} Bd7 {[%emt 0:00:00]} 20. Ne4 {[%emt 0:00:09]} Nf7 {[%emt 0:00:00]} 21. Ba3 {[%emt 0:00:22]} Re6 {[%emt 0:00:00]} 22. Nfg5 {[%emt 0:02:44]} Nxg5 {[%emt 0:00:00]} 23. Nxg5 {[%emt 0:00:01]} Rf6 {[%emt 0:00:00]} 24. Qxe5 {[%emt 0:00:15]} Qxe5 {[%emt 0:00:00]} 25. Rxe5 {[%emt 0:00:00]} Re6 {[%emt 0:00:00]} 26. Re1 Rf6 {[%emt 0:00:16]} 27. Re5 h6 {[%emt 0:05:15]} 28. Re7 {[%emt 0:03:52]} hxg5 {[%emt 0:00:42]} 29. Rxd7 {[%emt 0:00:03]} Rf7 {[%emt 0:00:51]} 30. Rxf7 {[%emt 0:00:51]} Kxf7 {[%emt 0:00:07]} 31. Kf1 {[%emt 0:00:32]} Nc7 {[%emt 0:00:57]} 32. Bc5 {[%emt 0:00:38]} a6 {[%emt 0:00:30]} 33. Ke2 {[%emt 0:01:32]} Ne6 {[%emt 0:00:33]} 34. Be3 {[%emt 0:00:23]} Nf4+ {[%emt 0:01:19]} 35. Bxf4 {[%emt 0:01:37]} gxf4 {[%emt 0:00:00]} 36. Kd3 {[%emt 0:00:20]} Ke6 {[%emt 0:00:20]} 37. Ke4 {[%emt 0:01:23]} g5 {[%emt 0:00:26]} 38. f3 {[%emt 0:01:03]} Bh6 {[%emt 0:00:36]} 39. Bf1 {[%emt 0:00:45]} c5 {[%emt 0:00:32]} 40. Bd3 {[%emt 0:00:16]} b6 {[%emt 0:00:26]} 41. a3 {[%emt 0:00:36]} a5 {[%emt 0:00:15]} 42. a4 {[%emt 0:00:23]} Bg7 {[%emt 0:00:27]} 43. h4 {[%emt 0:00:23]} Bf6 {[%emt 0:00:48]} 44. hxg5 {[%emt 0:00:25]} Bxg5 {[%emt 0:00:09]} 45. Bf1 {[%emt 0:00:19]} Bh6 {[%emt 0:00:26]} 46. Bg2 {[%emt 0:00:04]} Kf6 {[%emt 0:00:56]} 47. Kd5 {[%emt 0:02:08]} Kg5 {[%emt 0:00:32]} 48. Kc6 {[%emt 0:00:20]} Kh4 {[%emt 0:00:25]} 49. Bf1 {[%emt 0:00:07]} Kg3 {[%emt 0:00:32]} 50. Be2 {[%emt 0:00:28]} Kf2 {[%emt 0:00:20]} 51. Bd1 {[%emt 0:00:04]} Ke1 {[%emt 0:00:16]} 52. Bc2 {[%emt 0:00:04]} Kf2 {[%emt 0:00:37]} 53. Be4 {[%emt 0:00:07]} Ke3 {[%emt 0:00:41]} 54. Kxb6 {[%emt 0:00:07]} Kd4 {[%emt 0:00:26]} 55. Kxa5 {[%emt 0:00:33]} Bf8 {[%emt 0:00:44]} 56. Kb5 {[%emt 0:00:29]} Bd6 {[%emt 0:00:28]} 57. g5 {[%emt 0:00:11]} Kc3 {[%emt 0:00:09]} 58. a5 {[%emt 0:00:22]} Kxb3 {[%emt 0:00:29]} 59. a6 {[%emt 0:00:05]} Bb8 {[%emt 0:00:14]} 60. g6 {[%emt 0:00:04]} Ba7 {[%emt 0:00:18]} 61. g7 {[%emt 0:00:07]} Bb8 {[%emt 0:00:14]} 62. g8=Q {[%emt 0:04:58]} 1-0